Cogmind - Beta 17.1 @@@ ROGUE MODE // 2026.08.28 @ 15:02:47 Player: naththebg Result: Self-destructed Performance ------------- Evolutions (1) 500 Regions Visited (2) 400 Robots Destroyed (23) 115 Value Destroyed (633) 633 Prototype IDs (3) 60 Alien Tech Used (0) 0 Bonus (5200) 5200 TOTAL SCORE: 6908 Bonus ------- Prayed to X0-1V1 5000 Major X0-1V1 Interference 200 Cogmind --------- Core Integrity 75/250 Matter 300/300 Energy 278/280 System Corruption 0% Temperature Cool (0) Movement Treading (160) Location -9/Materials Parts ------- > --- POWER (1) -------- Heavy Ion Engine > --- PROPULSION (2) --- Improved Treads (fused) Spiked Treads (fused) > --- UTILITY (4) ------ Heat Sink Medium Storage Unit Medium Armor Plating Self-contained Transmogrifier > --- WEAPON (2) ------- Riot Gun (fused) Assault Rifle > --- INVENTORY (10) --- Ion Engine Light Ion Engine Light Treads Light Treads Aluminum Leg Compact Wheel Compact Wheel Beam Rifle Beam Rifle Light Assault Rifle Peak State ------------ > --- POWER ------------ Heavy Ion Engine > --- PROPULSION ------- Improved Treads Spiked Treads > --- UTILITY ---------- Medium Storage Unit Hardened Light Armor Plating Self-contained Transmogrifier X0-1V1's Piety Tracker > --- WEAPON ----------- Beam Rifle Assault Rifle > --- INVENTORY -------- Ion Engine Light Ion Engine Light Treads Light Treads Aluminum Leg Compact Wheel Compact Wheel Small Laser Light Assault Rifle [Rating: 35] Favorites ----------- Power Ion Engine Engine Ion Engine Propulsion Light Treads Treads Light Treads Utility Medium Storage Unit Device Self-contained Transmogrifier Storage Medium Storage Unit Protection Medium Armor Plating Weapon Assault Rifle Energy Gun Small Laser Ballistic Gun Assault Rifle Build | -11 -10 -9 ------- Run | Yrd Mat Mat Slots Evolved 2 | . . 2 Power . | . . . Propulsion . | . . . Utility 2 | . . 2 Weapon . | . . . Parts Attached 16 | 6 2 8 Power 3 | 1 . 2 Engine 3 | 1 . 2 Core . | . . . Reactor . | . . . Propulsion 3 | 2 . 1 Treads 3 | 2 . 1 Leg . | . . . Wheel . | . . . Hover . | . . . Flight . | . . . Utility 7 | 1 2 4 Device 4 | . 1 3 Storage 2 | 1 1 . Processor . | . . . Hackware . | . . . Protection 1 | . . 1 Artifact . | . . . Weapon 3 | 2 . 1 Energy Gun 2 | 1 . 1 Energy Cannon . | . . . Ballistic Gun 1 | 1 . . Ballistic Cannon . | . . . Launcher . | . . . Special Weapon . | . . . Impact Weapon . | . . . Slashing Weapon . | . . . Piercing Weapon . | . . . Special Melee Weapon . | . . . Unidentified Prototypes 2 | . 1 1 Parts Lost 1 | . . 1 Power 1 | . . 1 Propulsion . | . . . Utility . | . . . Weapon . | . . . Highest Loss Streak 1 | . . 1 To Critical Strikes . | . . . Average Backups 7 | 4 6 8 Power 1 | . 1 2 Propulsion 4 | 3 4 5 Utility . | . . . Weapon 1 | 1 1 1 Tool/Special . | . . . Unused Backups 11 | . . 11 Power 2 | . . 2 Propulsion 6 | . . 6 Utility . | . . . Weapon 3 | . . 3 Tool/Special . | . . . Average Slot Usage (%) 92 | . 87 96 Engine 12 | . 14 11 Treads 24 | . 28 22 Device 13 | . 2 22 Storage 12 | . 14 11 Protection 4 | . . 7 Energy Gun 12 | . 14 11 Ballistic Gun 12 | . 14 11 Peak Build Rating 35 | 6 27 35 Average Rating 18 | 4 7 27 On Entrance 7 | . 6 15 Avg Prop Armor Cover (%) 36 | 36 . . Naked Turns . | . . . Heaviest Build 35 | 13 18 35 Greatest Support 43 | 40 40 43 Greatest Overweight (x) 3 | 3 . . Average Overweight (x) . | . . . Largest Inventory Capacity 10 | 8 10 10 Average Capacity 9 | 7 8 10 Most Carried 10 | 7 8 10 Average Carried 7 | 5 6 8 Final Capacity 10 | 8 10 10 Final Carried 10 | 6 8 10 Transmogrified Parts 4 | . . 4 Integrity Recovered 70 | . . 70 Class Distribution -------------------- 96% | Mutant 3% | Scavenger-Mutant Dominant Class ---------------- Mutant | -10/Materials Mutant | -9/Materials Resources | -11 -10 -9 ----------- Run | Yrd Mat Mat Matter Collected 589 | 260 83 246 Remotely . | . . . Salvage Created 795 | . 310 485 Parts 47 | . 21 26 Haulers Intercepted 2 | . 1 1 Recyclers Shooed . | . . . Parts Field Recycled . | . . . Retrieved Matter . | . . . Parts Self-Destructed . | . . . Prevented . | . . . Parts Restored . | . . . Kills | -11 -10 -9 ------- Run | Yrd Mat Mat Combat Hostiles Destroyed 17 | . 6 11 Guns 16 | . 6 10 Classes Destroyed 7 | . 3 4 Hauler 2 | . 1 1 Operator 2 | . . 2 Watcher 2 | . 1 1 Swarmer 3 | . . 3 Grunt 10 | . 6 4 Duelist 1 | . . 1 Sentry 3 | . . 3 Best Kill Streak 4 | . 2 4 Combat Bots Only 3 | . 2 3 Max Kills in Single Turn 1 | . 1 1 Gunslinging . | . . . Exploded . | . . . Melee . | . . . Uniques/NPCs Destroyed . | . . . Combat | -11 -10 -9 -------- Run | Yrd Mat Mat Hostile Shots Fired 97 | . 18 79 Missed 16 | . 4 12 Hits 81 | . 14 67 Projectile 81 | . 14 67 Critical Strikes 1 | . . 1 Damage Taken 843 | . 160 683 Core 211 | . 36 175 Absorbed by Shields . | . . . Core Remaining (%) 82 | 100 64 . Volleys Fired 69 | . 21 48 Largest 2 | . 2 2 Hottest 76 | . 60 76 Shots Fired 137 | . 41 96 Gun 137 | . 41 96 Cannon . | . . . Launcher . | . . . Special . | . . . Kinetic 69 | . 21 48 Thermal 60 | . 20 40 Explosive . | . . . Electromagnetic 8 | . . 8 Robot Hit Streak 8 | . 7 8 Robot Miss Streak 7 | . 2 7 Penetration Max . | . . . Secondary Targets 1 | . . 1 Max Gunslinging Chain 1 | . . 1 Shots Hit Robots 75 | . 29 46 Core Hits 35 | . 18 17 Critical Kills . | . . . Critical Parts Destroyed 1 | . 1 . Critical Strikes 2 | . 1 1 Burn 1 | . . 1 Destroy 1 | . 1 . Melee Attacks . | . . . Impact . | . . . Slashing . | . . . Piercing . | . . . Sneak Attacks . | . . . Combat Hostiles . | . . . Follow-up Attacks . | . . . Damage Inflicted 1243 | . 372 871 Guns 963 | . 360 603 Cannons 145 | . . 145 Explosions 123 | . . 123 Melee . | . . . Ramming 12 | . 12 . Kinetic 488 | . 206 282 Thermal 645 | . 154 491 Explosive . | . . . Electromagnetic 98 | . . 98 Impact . | . . . Slashing . | . . . Piercing . | . . . Highest Corruption 1 | . 1 . Average Corruption 1 | . 1 . Corruption Purged . | . . . Corruption Blocked . | . . . Effects 1 | . 1 . Message Errors 1 | . 1 . Overload Shots . | . . . Overflow Damage 99 | . . 99 Projectiles 45 | . . 45 Explosions 54 | . . 54 Melee . | . . . Knockbacks . | . . . Impact . | . . . Kinetic . | . . . Secondary . | . . . Self-Inflicted Damage . | . . . Shots . | . . . Rammed 3 | . 3 . Targets Rammed 3 | . 3 . Kicked . | . . . Crushed . | . . . Highest Temperature 297 | . 30 297 Average Temperature 91 | . 18 120 Received Heat Transfer 231 | . 90 141 Effects 2 | . . 2 Interference 2 | . . 2 Siege Activations . | . . . Martial Activations . | . . . Shielding Activations . | . . . Robots Disrupted . | . . . Combat Hostiles . | . . . Robots Corrupted . | . . . Combat Hostiles . | . . . Parts Fried . | . . . Impact Corruptions . | . . . Robots Melted 2 | . . 2 Combat Hostiles 1 | . . 1 Parts Melted 2 | . . 2 Heat Transferred 1248 | . 350 898 Parts Sabotaged . | . . . Parts Stolen . | . . . Parts Stripped . | . . . Power Chain Reactions . | . . . Alert | -11 -10 -9 ------- Run | Yrd Mat Mat Maximum Alert Level 1 | . . 1 Low Security (%) 85 | 100 100 72 Level 1 14 | . . 27 Level 2 . | . . . Level 3 . | . . . Level 4 . | . . . Level 5 . | . . . High Security . | . . . Max Security . | . . . Peak Influence 242 | . 100 242 Initial . | . . . Average 76 | . 53 102 Influence Increases 678 | . 214 464 Destroy 0b10 Robot/C 340 | . 120 220 Destroy 0b10 Robot/NC 30 | . 10 20 Destroy Leader 88 | . 24 64 Successful Hack 16 | . . 16 Destroy Structure 12 | . . 12 Lose Combat Pursuer 90 | . 60 30 Miscellaneous 102 | . . 102 Influence Decreases 444 | . 214 230 Time Decay 396 | . 176 220 Lost Part 10 | . . 10 Purge Threat 38 | . 38 . Squads Dispatched 2 | . 1 1 Investigation . | . . . Extermination . | . . . Reinforcement 2 | . 1 1 Assault . | . . . Garrison . | . . . Intercept . | . . . Searches Triggered . | . . . Construction Impeded . | . . . Haulers Reinforced . | . . . Active Scanning Responses . | . . . Cargo Convoy Interrupts . | . . . Stealth | -11 -10 -9 --------- Run | Yrd Mat Mat Distress Signals 3 | . . 3 Communications Jammed . | . . . Distress Signals . | . . . Times Spotted 33 | . 13 20 Peak Tracking Total 4 | . 3 4 Tactical Retreats 6 | . 4 2 Traps | -11 -10 -9 ------- Run | Yrd Mat Mat Traps Triggered 2 | . 2 . Indirectly . | . . . Trap Hack Attempts . | . . . Triggered . | . . . Disarmed . | . . . Reprogrammed . | . . . Reused . | . . . Traps Extracted . | . . . Installed . | . . . Triggered . | . . . Machines | -11 -10 -9 ---------- Run | Yrd Mat Mat Machines Disabled . | . . . Max in Single Turn . | . . . Machines Repaired . | . . . Machines Dismantled . | . . . Machines Sabotaged . | . . . Overloaded Fab Kills . | . . . Hacking | -11 -10 -9 --------- Run | Yrd Mat Mat Machines Accessed 3 | . 1 2 Terminals 3 | . 1 2 Fabricators . | . . . Repair Stations . | . . . Recycling Units . | . . . Scanalyzers . | . . . Garrison Access . | . . . Total Hacks 5 | . 1 4 Successful 3 | . 1 2 Failed 2 | . . 2 Catastrophic 1 | . . 1 Database Lockouts . | . . . Manual 2 | . 1 1 Terminals 5 | . 1 4 Fabricators . | . . . Repair Stations . | . . . Recycling Units . | . . . Scanalyzers . | . . . Garrison Access . | . . . Terminal Hacks 2 | . 1 1 Branch Access Points 1 | . . 1 Unreport Threat 1 | . 1 . Fabricator Hacks . | . . . Repair Station Hacks . | . . . Recycling Unit Hacks . | . . . Scanalyzer . | . . . Garrison Access Hacks . | . . . Unauthorized Hacks 1 | . . 1 Terminals 1 | . . 1 Skim 1 | . . 1 Fabricators . | . . . Repair Stations . | . . . Recycling Units . | . . . Scanalyzers . | . . . Garrison Access . | . . . Data Cores Recovered 1 | . . 1 Used . | . . . Hacking Detections 2 | . . 2 Full Trace Events . | . . . Feedback Events . | . . . Feedback Blocked . | . . . Robot Schematics Acquired . | . . . Robots Built . | . . . Authchips . | . . . Time . | . . . Total Robot Build Rating . | . . . Part Schematics Acquired . | . . . Parts Built . | . . . Authchips . | . . . Time . | . . . Total Part Build Rating . | . . . Part Studies Acquired . | . . . Parts Repaired . | . . . Time . | . . . Parts Recycled . | . . . Recycled Matter . | . . . Retrieved Matter . | . . . Retrieved Components . | . . . Parts Scanalyzed . | . . . Part Schematics Acquired . | . . . Parts Damaged . | . . . Bothacking | -11 -10 -9 ------------ Run | Yrd Mat Mat Used RIF Installer . | . . . Robots Hacked . | . . . Non-combat . | . . . Combat . | . . . Robot Hacks Applied . | . . . Relay Couplers Released . | . . . Fabnet Peak Effective % . | . . . Robots Rewired . | . . . Allies Hacked . | . . . Hacks Repelled . | . . . Allies | -11 -10 -9 -------- Run | Yrd Mat Mat Total Allies . | . . . Largest Group . | . . . Highest-Rated Group . | . . . Highest-Rated Ally . | . . . Total Orders . | . . . Ally Attacks . | . . . Total Damage . | . . . Kills . | . . . Allies Corrupted . | . . . Allies Melted . | . . . X0-1V1 Amusement Gains 7 | . 3 4 Average Entertainment 4 | . 5 4 Good Acts 2 | . . 2 Bad Acts 3 | . . 3 Intel | -11 -10 -9 ------- Run | Yrd Mat Mat Active Infowar (turns) . | . . . Robot Analysis Total . | . . . Derelict Logs Recovered . | . . . Drone Launches . | . . . Drone Recoveries . | . . . Exploration | -11 -10 -9 ------------- Run | Yrd Mat Mat Turns Passed 1109 | 73 438 598 Spaces Moved 487 | 51 196 240 Core 25 | 25 . . Treads 462 | 26 196 240 Legs . | . . . Wheels . | . . . Hover . | . . . Flight . | . . . Fastest Speed 50 | 50 160 160 Average Speed 155 | 115 160 160 Slowest Speed 200 | 200 160 160 Overloaded Moves . | . . . Propulsion Burnouts . | . . . Robots Hopped . | . . . Potential Cave-ins . | . . . Cave-ins Triggered . | . . . Exploration Rate (%) 21 | 4 35 24 Regions Visited 2 Branch Regions . Pre-discovered Areas . | . . . Known Exits Taken . | . . . Unknown Exits Taken 2 | 1 1 . Scrap Searched . | . . . Spaces Dug . | . . . Terrain Destroyed 11 | . . 11 Melee . | . . . Projectile . | . . . AOE 11 | . . 11 Terrain Rammed . | . . . Walls Destroyed . | . . . Machines Disabled . | . . . Actions | -11 -10 -9 --------- Run | Yrd Mat Mat Total 697 | 63 277 357 Wait 98 | . 46 52 Move 485 | 50 195 240 Hop . | . . . Pick Up 17 | 7 5 5 Fast Attach 13 | 5 4 4 Attach 1 | 1 . . Detach . | . . . Swap 5 | . . 5 Drop 6 | . 3 3 Fire 69 | . 21 48 Melee . | . . . Ram . | . . . Kick . | . . . Crush 3 | . 3 . Escape Stasis . | . . . Rewire . | . . . Trap . | . . . Miscellaneous . | . . . Route ------- -11/Scrapyard -10/Materials (discovered 2 exits: *Mat / [*Sub]) -9/Materials (discovered 2 exits: Min / Sto) History --------- Turn | Location | Event 7 | -11/Scrapyard | Discovered new exit (range 14) 74 | -11/Scrapyard | Entered Materials 315 | -10/Materials | Build established: Mutant 426 | -10/Materials | Discovered new exit (range 5) 433 | -10/Materials | Made a sacrifice at D.C.S.S. Altar Unit 433 | -10/Materials | Forcibly received Sfc. Transmogifier from X0-1V1 486 | -10/Materials | Discovered new exit (range 7) 512 | -10/Materials | Entered another Materials area 512 | -9/Materials | Evolved 2 slots: Utility x2 645 | -9/Materials | X0-1V1 foreshadows a heat wave 765 | -9/Materials | Core integrity fell below 50% 853 | -9/Materials | Ambient heat levels rising (+10) 925 | -9/Materials | X0-1V1 added 0b10 threat records associated with you (minor) 1099 | -9/Materials | Identified exit to Mines 1099 | -9/Materials | Identified exit to Storage 1104 | -9/Materials | Ambient heat levels rising (+10) 1110 | -9/Materials | Self-destructed Last Messages --------------- 00991_ R-06 Scavenger collects Hvy. Ion Engine. 00991_ M-13 Machinist fits Backup Propulsion I on R-06 Scavenger. 00998_ Acquired data core, extracted dynamic key. 01001_ Acquired 6 matter. 01020_ Ranged accuracy returns to normal. 01046_ Acquired Beam Rifle. 01053_ X0-1V1 is getting bored... 01056_ Dropped Sml. Laser. 01056_ Acquired Beam Rifle. 01073_ U-05 Engineer heat spikes uncontrollably. 01086_ Y-45 Defender destroyed. 01092_ Acquired 6 matter. 01099_ Connecting with Terminal... >>Access(Branch) Found 2 branch access points: (49,48) Mines (42,91) Storage Map updated. 01104_ ALERT: Sterilization system anomaly impacting ambient heat levels +10. Map ----- +----------------------------------------------------+ | ?????????????????????????????????????????????????? | | ?????????????????????????????????????????????????? | | ?????????????????????????????????????????????????? | | ?????????????????????????????????????????????????? | | ?????????????????????????????????????????????????? | | ?????????????????????????????????????????????????? | | ?????????????????????????????????????????????????? | | ?????????????????????????????????????????????????? | | ?????????????????????????????????????????????????? | | ?????????????????????????????????????????????????? | | ?????????????????????????????????????????????????? | | ?????????????????????????????????????????????????? | | ?????????????????????????????????????????????????? | | ???????????????? ????????????????????????????????? | | ??????????????## #???????????????????????????????? | | ??????????????# ###?????????????????% ????????? | | ??????????????# ??????????????? ????????? | | ??????????????# %]?????????????? % #???????? | | ???????????????# ?????????????? #???????? | | ???????????????# ?????????????? #???????? | | ????????????????? ?????????????? #???????? | | ???????????>?????? s ???????????? #???????? | | ???????????????????? s ???????????# #???????? | | ?????????????????????# s ###+#######?# ######### | | ?????????????????????# # """"" ### # """ | | ?????????????????????+ @ ""T""!=## # ""R" | | ?????????????????????# # *%### # "" " | | ?????????????????????# # !#?# # | | ?????????????????????#% ########+##?# # """ """ | | ?????????????????????# ######## #### + """ """ | | ?????????????????????# # """ """ | | ?????????????????????# % # | | ?????????????????????# ######### | | ?????????????????????# ##+##### #??????? | | ????????????????###### # # #??????? | | ???????????????## # +% #??????? | | ???????????????+ *** + ##### #??????? | | ???????????????# *%* # #???# #??????? | | ????????#+###### *###### #??####+#####????? | | ??? % %!! ##???# #??# #????? | | ?????????######"!%! "############??# #????? | | ??????#########""!% "# #???# #????? | | ?????# ""% "# ""#???# #????? | | ?????# """ " #%""" T"#???# [! #????? | | ????????"""" " #[""" ""#???# = #????? | | ????????"""" " %+=""" #???# != #????? | | ?????????""" # #! #???# #????? | | ?????????"" # # * #???# #????? | | ???????? ## !!## % #???##########????? | | ??????? "T"??# = ####+#######?????????????????? | +----------------------------------------------------+ Best States ------------- Heat Dissipation 38 Energy Generation 14 Energy Capacity 280 Matter Stores 300 Matter Capacity 300 Sight Range 16 Terrain Scan Density 10 Armor Coverage 375 Evasion (%) 50 Recoil Reduction 2 Item Schematics ----------------- None Robot Schematics ------------------ None Fabricated ------------ Nothing Repaired ---------- Nothing Studied --------- None Alien Tech Used ----------------- None Achievements -------------- None Challenges ------------ None Game ------ Seed SubdwellerInertialLauncher Manual? 0 Play Time 00:07:02 Cumulative 598.4 hours Start 2026.08.28 @ 14:56:03 End 2026.08.28 @ 15:02:47 Sessions 1 Manual Loads 0 Difficulty Rogue Special Mode None Game No. 330 Rogue 330 Adventurer 0 Explorer 0 Win Type - Total 20 Types 10/1/3/1/1/0/1/1/0/2 Lore% 86 Gallery% 84 Achievement% 76 Wizard Run 0 Options --------- Layout 0 ASCII 0 Keyboard 0 Movement Mouse Keybinds 0 Fullscreen 1 Font 18/SmallcapsGlow Map View 76x50 Zoom Use 0% Tactical HUD 1 Map Filters NONE Filters NONE Steam 1 RUN: 9f566263-9bc2-4435-bd3e-34e82f011f86